Cogmind - Beta 9.6 @@@ ROGUE MODE // 2020.05.22 @ 17:47:36 Player: Pimski Result: Destroyed by Z-Imprinter with Zionite Laser-M Performance ------------- Evolutions (4) 2000 Regions Visited (17) 3400 Robots Destroyed (211) 1055 Value Destroyed (4546) 4546 Prototype IDs (52) 1040 Alien Tech Used (0) 0 Bonus (672) 672 TOTAL SCORE: 12713 Bonus ------- High Alert Combat Kills 289 Aligned with FarCom 300 Met Data Miner 300 Met Imprinter 300 Friendly Fire -517 Cogmind --------- Core Integrity 0/850 Matter 286/300 Energy 1960/2100 System Corruption 0% Temperature Cool (9) Movement Flying (245) Ox3 Location -6/Deep Caves Parts ------- > --- POWER (1) -------- (None) > --- PROPULSION (3) --- Improved VTOL Module > --- UTILITY (9) ------ Large Storage Unit Superbattery Improved System Shield > --- WEAPON (2) ------- (None) > --- INVENTORY (10) --- Enhanced Nuclear Core Light Angular Momentum Engine Improved VTOL Module Improved VTOL Module Improved VTOL Module AS-neutralizer No. 17b Chronowheel Improved Proton Missile Launcher Peak State ------------ > --- POWER ------------ Light Angular Momentum Engine > --- PROPULSION ------- Improved VTOL Module Improved VTOL Module Improved VTOL Module > --- UTILITY ---------- Large Storage Unit Superbattery Gravity Neutralizing Apparatus Gravity Neutralizing Apparatus Enhanced Optical Array Experimental Targeting Computer Advanced Weapon Cycler Improved Hacking Suite Improved System Shield > --- WEAPON ----------- 8R-AWN's Boregun 8R-AWN's Boregun > --- INVENTORY -------- Enhanced Nuclear Core Light Angular Momentum Engine Improved VTOL Module Improved VTOL Module Improved VTOL Module Advanced Weight Redist. System AS-neutralizer No. 17b Chronowheel Improved Proton Missile Launcher Heavy Pick [Rating: 93] Favorites ----------- Power Improved Ion Engine Engine Improved Ion Engine Power Core Light Nuclear Core Propulsion Light Treads Treads Light Treads Leg Aluminum Leg Flight Unit Improved VTOL Module Utility High-capacity Storage Unit Device Gravity Neutralizing Apparatus Storage High-capacity Storage Unit Processor Enhanced Optical Array Hackware Hacking Suite Protection Hardened Light Armor Plating Weapon Enhanced Autogun Energy Gun EM Pulse Gun Energy Cannon Light EM Pulse Cannon Ballistic Gun Enhanced Autogun Launcher Rocket Launcher Slashing Weapon Katana Piercing Weapon Heavy Pick Build | -11 -10 -10 -9 -9 -9 -8 -8 -7 -7 -7 -7 -6 -6 -6 -6 -6 -6 ------- Run | Scr Mat Min Mat Min Exi Min Mat Fac Low Low Dat Pro Fac Low Low Zio Dee Slots Evolved 8 | . . . 2 . . . 2 2 . . . . 2 . . . . Power . | . . . . . . . . . . . . . . . . . . Propulsion 1 | . . . . . . . . 1 . . . . . . . . . Utility 7 | . . . 2 . . . 2 1 . . . . 2 . . . . Weapon . | . . . . . . . . . . . . . . . . . . Parts Attached 161 | 2 12 7 21 . 28 6 23 39 . . . 2 12 1 . 6 2 Power 17 | . . 2 3 . 3 . 4 3 . . . . 2 . . . . Engine 12 | . . 1 3 . . . 4 2 . . . . 2 . . . . Core 5 | . . 1 . . 3 . . 1 . . . . . . . . . Reactor . | . . . . . . . . . . . . . . . . . . Propulsion 39 | . 4 . 6 . 5 2 4 15 . . . 1 2 . . . . Treads 31 | . 4 . 6 . 5 1 4 11 . . . . . . . . . Leg 1 | . . . . . . 1 . . . . . . . . . . . Wheel . | . . . . . . . . . . . . . . . . . . Hover . | . . . . . . . . . . . . . . . . . . Flight 7 | . . . . . . . . 4 . . . 1 2 . . . . Utility 49 | 1 4 . 4 . 10 2 6 10 . . . 1 7 . . 3 1 Device 12 | . . . . . 3 . 1 1 . . . 1 2 . . 3 1 Storage 13 | 1 4 . 1 . 3 . 2 1 . . . . 1 . . . . Processor 5 | . . . . . . . 2 1 . . . . 2 . . . . Hackware 6 | . . . . . . . . 4 . . . . 2 . . . . Protection 13 | . . . 3 . 4 2 1 3 . . . . . . . . . Artifact . | . . . . . . . . . . . . . . . . . . Weapon 56 | 1 4 5 8 . 10 2 9 11 . . . . 1 1 . 3 1 Energy Gun 1 | . 1 . . . . . . . . . . . . . . . . Energy Cannon 5 | . . . . . 5 . . . . . . . . . . . . Ballistic Gun 36 | 1 3 3 7 . 4 2 7 6 . . . . . 1 . 2 . Ballistic Cannon . | . . . . . . . . . . . . . . . . . . Launcher 5 | . . 2 1 . 1 . 1 . . . . . . . . . . Special Weapon . | . . . . . . . . . . . . . . . . . . Impact Weapon . | . . . . . . . . . . . . . . . . . . Slashing Weapon 6 | . . . . . . . 1 5 . . . . . . . . . Piercing Weapon 3 | . . . . . . . . . . . . . 1 . . 1 1 Special Melee Weapon . | . . . . . . . . . . . . . . . . . . Unidentified Prototypes 9 | . . . . . 4 1 1 2 . . . . . . . 1 . Parts Lost 45 | . 2 . 4 . 11 . 6 5 . . . 2 2 . . . 13 Power 6 | . . . 1 . 2 . 1 . . . . . 1 . . . 1 Propulsion 10 | . . . 1 . 3 . . 3 . . . 1 . . . . 2 Utility 15 | . . . . . 2 . 3 1 . . . 1 1 . . . 7 Weapon 14 | . 2 . 2 . 4 . 2 1 . . . . . . . . 3 Highest Loss Streak 13 | . 2 . 2 . 7 . 2 1 . . . 2 1 . . . 13 Average Slot Usage (%) 97 | . 99 100 99 100 97 91 91 99 92 92 92 89 91 97 100 100 90 Engine 7 | . 14 13 10 11 3 . 6 6 7 7 7 7 6 6 6 6 5 Core 1 | . . . . . 7 11 1 . . . . . . . . . . Treads 17 | . 25 28 22 22 21 21 18 22 . . . . . . . . . Flight 3 | . . . . . . . . . 23 23 23 23 18 20 20 20 18 Device 3 | . . . . . . . 1 . 7 7 7 12 14 20 20 20 17 Storage 26 | . 28 28 33 33 26 22 33 29 7 7 7 7 9 13 13 13 13 Processor 4 | . . . . . . . 7 7 7 7 7 7 6 13 13 13 11 Hackware 5 | . . . . . . . . 12 23 23 23 23 26 13 13 13 11 Protection 5 | . . . 10 11 16 14 4 2 7 7 7 . . . . . . Ballistic Gun 16 | . 27 28 21 22 13 22 17 13 . . . . . 4 6 7 9 Naked Turns . | . . . . . . . . . . . . . . . . . . Heaviest Build 145 | 14 69 71 114 114 114 96 145 143 29 29 29 29 33 39 39 43 42 Greatest Support 62 | 20 40 40 40 40 43 43 43 62 30 30 30 30 39 39 39 42 42 Greatest Overweight (x) 14 | . 1 1 2 2 4 2 3 3 . . . . . . . 14 . Average Overweight (x) 1 | . . 1 2 2 2 1 2 1 . . . . . . . . . Largest Inventory Capacity 36 | 8 20 20 28 28 28 20 36 36 10 10 10 10 10 10 10 10 10 Average Capacity 24 | 6 16 20 28 28 23 20 33 35 10 10 10 10 10 10 10 10 10 Most Carried 36 | 6 20 20 28 28 28 20 36 36 10 10 10 10 10 10 10 10 10 Average Carried 23 | 6 15 20 26 27 19 19 32 34 9 10 10 9 8 9 10 10 9 Final Capacity 36 | 8 20 20 28 28 20 20 36 10 10 10 10 10 10 10 10 10 10 Final Carried 36 | 6 20 20 28 28 20 20 36 10 10 10 10 10 10 10 10 10 8 Class Distribution -------------------- 72% | Hauler-Mutant 8% | Hacker-Sprinter 7% | Mutant 6% | Hacker-Mutant 3% | Scavenger-Sprinter Dominant Class ---------------- Mutant | -10/Materials Hauler-Mutant | -10/Mines Hauler-Mutant | -9/Materials Hauler-Mutant | -9/Mines Hauler-Mutant | -9/Exiles Hauler-Mutant | -8/Mines Hauler-Mutant | -8/Materials Hauler-Mutant | -7/Factory Hacker-Sprinter | -7/Lower Caves Hacker-Sprinter | -7/Lower Caves Hacker-Sprinter | -7/Data Miner Hacker-Sprinter | -6/Proximity Caves Hacker-Sprinter | -6/Factory Hacker-Sprinter | -6/Lower Caves Hacker-Sprinter | -6/Lower Caves Hacker-Mutant | -6/Zion Scavenger-Sprinter | -6/Deep Caves Resources | -11 -10 -10 -9 -9 -9 -8 -8 -7 -7 -7 -7 -6 -6 -6 -6 -6 -6 ----------- Run | Scr Mat Min Mat Min Exi Min Mat Fac Low Low Dat Pro Fac Low Low Zio Dee Matter Collected 5010 | 227 256 184 572 70 270 92 1113 840 82 . . 85 33 40 47 984 115 Remotely . | . . . . . . . . . . . . . . . . . . Salvage Created 7878 | 113 545 213 1350 139 131 112 2405 1670 . . . . 33 . . 991 176 Parts 436 | 6 34 19 87 6 11 10 110 89 . . . . 4 . . 55 5 Haulers Intercepted 12 | . 2 . 2 . . . 6 2 . . . . . . . . . Recyclers Shooed 17 | 1 4 . 3 2 . . 4 3 . . . . . . . . . Parts Field Recycled . | . . . . . . . . . . . . . . . . . . Retrieved Matter . | . . . . . . . . . . . . . . . . . . Parts Self-Destructed . | . . . . . . . . . . . . . . . . . . Prevented . | . . . . . . . . . . . . . . . . . . Kills | -11 -10 -10 -9 -9 -9 -8 -8 -7 -7 -7 -7 -6 -6 -6 -6 -6 -6 ------- Run | Scr Mat Min Mat Min Exi Min Mat Fac Low Low Dat Pro Fac Low Low Zio Dee Combat Hostiles Destroyed 126 | . 14 10 22 1 7 5 33 25 . . . . . . . 2 7 Melee 2 | . . . . . 1 . . . . . . . . . . . 1 Guns 102 | . 14 4 16 1 . 5 29 25 . . . . . . . 2 6 AOE 22 | . . 6 6 . 6 . 4 . . . . . . . . . . Classes Destroyed 19 | 2 4 . 5 . 1 1 . 2 . . . . . . . 3 1 Worker 8 | . . . 3 1 . . 3 1 . . . . . . . . . Builder 1 | . . . 1 . . . . . . . . . . . . . . Tunneler 2 | 1 . . . . . . . 1 . . . . . . . . . Hauler 12 | . 2 . 2 . . . 6 2 . . . . . . . . . Recycler 18 | 1 1 . 4 1 . . 7 4 . . . . . . . . . Mechanic 1 | . . . . . . . . 1 . . . . . . . . . Operator 4 | . 2 . 1 . . . 1 . . . . . . . . . . Watcher 9 | . . . 3 . . . 3 2 . . . . 1 . . . . Swarmer 40 | . 9 6 7 . . 4 8 6 . . . . . . . . . Grunt 45 | . 5 4 7 . . . 18 11 . . . . . . . . . Duelist 3 | . . . 1 1 . . 1 . . . . . . . . . . Sentry 18 | . . . 7 . . . 5 6 . . . . . . . . . Hunter 2 | . . . . . . 1 1 . . . . . . . . . . Programmer 2 | . . . . . . . . 2 . . . . . . . . . Zionite 26 | . . . . . . . . . . . . . . . . 26 . Z-Light 1 | . . . . . . . . . . . . . . . . . 1 Tinkerer 2 | . . . . . . . . . . . . . . . . 2 . Assembled 13 | . . . . . 7 . . . . . . . . . . . 6 Thug 1 | . . . . . . . . . . . . . . . . 1 . Mutant 1 | . . . . . . . . . . . . . . . . 1 . Best Kill Streak 11 | 2 7 3 10 3 6 4 7 4 . . . . 1 . . 11 7 Combat Bots Only 7 | . 4 3 7 1 6 4 6 3 . . . . . . . 1 6 Max Kills in Single Turn 5 | 1 1 2 5 1 2 1 3 1 . . . . 1 . . 2 2 Gunslinging . | . . . . . . . . . . . . . . . . . . Exploded 4 | . . 2 4 . 2 . 3 . . . . . . . . . . Melee 1 | . . . . . 1 . . . . . . . . . . . 1 Uniques/NPCs Destroyed 2 | . . . . . 1 . . . . . . . . . . 1 . 8R-AWN (-9/Exiles) CL-ANK (-6/Zion) Combat | -11 -10 -10 -9 -9 -9 -8 -8 -7 -7 -7 -7 -6 -6 -6 -6 -6 -6 -------- Run | Scr Mat Min Mat Min Exi Min Mat Fac Low Low Dat Pro Fac Low Low Zio Dee Damage Taken 10010 | . 465 267 1332 45 1680 202 1663 1797 129 20 95 135 263 . . 25 1892 Core 1699 | . 47 90 166 12 119 . 196 167 30 20 . . 102 . . . 750 Absorbed by Shields . | . . . . . . . . . . . . . . . . . . Core Remaining (%) 60 | 100 . 45 . . . 25 64 . . . . 69 . . . . . Volleys Fired 653 | 7 70 19 85 9 108 12 146 105 . . . . . . . 77 15 Largest 2 | 2 2 2 2 2 2 2 2 2 . . . . . . . 2 2 Hottest 112 | 60 60 40 46 46 112 40 50 50 . . . . . . . 60 60 Shots Fired 1213 | 14 139 33 160 18 144 24 288 210 . . . . . . . 154 29 Gun 1118 | 14 139 28 158 18 60 24 284 210 . . . . . . . 154 29 Cannon 76 | . . . . . 76 . . . . . . . . . . . . Launcher 19 | . . 5 2 . 8 . 4 . . . . . . . . . . Special . | . . . . . . . . . . . . . . . . . . Kinetic 1109 | 7 137 28 158 18 60 24 284 210 . . . . . . . 154 29 Thermal 2 | . 2 . . . . . . . . . . . . . . . . Explosive 19 | . . 5 2 . 8 . 4 . . . . . . . . . . Electromagnetic 83 | 7 . . . . 76 . . . . . . . . . . . . Robot Hit Streak 33 | 4 22 18 21 9 33 9 19 31 . . . . . . . 10 3 Robot Miss Streak 6 | 4 4 1 3 2 3 2 5 2 . . . . . . . 3 6 Penetration Max 2 | . . . . . . . . . . . . . . . . 2 1 Secondary Targets 16 | . 1 . 1 . . . 7 3 . . . . . . . 4 . Max Gunslinging Chain 1 | . 1 . 1 . . . 1 1 . . . . . . . 1 . Shots Hit Robots 896 | 8 95 29 121 14 118 17 199 171 . . 1 . 1 . . 101 21 Core Hits 398 | 3 41 18 55 3 42 9 93 73 . . . . 1 . . 46 14 Critical Hits 76 | . . . . . . 1 4 1 . . . . . . . 58 12 Critical Kills 21 | . . . . . . 1 1 . . . . . . . . 15 4 Critical Parts Destroyed 30 | . . . . . . . 3 1 . . . . . . . 23 3 Melee Attacks 62 | . . . . . . . . 12 8 . 1 . 10 . 8 11 12 Impact . | . . . . . . . . . . . . . . . . . . Slashing 23 | . . . . . . . . 12 8 . 1 . 2 . . . . Piercing 39 | . . . . . . . . . . . . . 8 . 8 11 12 Sneak Attacks 1 | . . . . . . . . . . . 1 . . . . . . Combat Hostiles . | . . . . . . . . . . . . . . . . . . Follow-up Attacks . | . . . . . . . . . . . . . . . . . . Damage Inflicted 14528 | 93 788 674 1894 242 1588 177 3445 3125 . . 100 . 63 . . 1720 619 Guns 11843 | 93 765 221 1531 233 669 169 3136 3021 . . . . . . . 1720 285 Cannons 87 | . . . . . 87 . . . . . . . . . . . . Explosions 1615 | . . 420 307 . 617 . 271 . . . . . . . . . . Melee 497 | . . . . . . . . . . . 100 . 63 . . . 334 Ramming 486 | . 23 33 56 9 215 8 38 104 . . . . . . . . . Kinetic 11769 | 42 742 221 1531 233 669 169 3136 3021 . . . . . . . 1720 285 Thermal 79 | . 23 . . . 56 . . . . . . . . . . . . Explosive 1559 | . . 420 307 . 561 . 271 . . . . . . . . . . Electromagnetic 138 | 51 . . . . 87 . . . . . . . . . . . . Impact . | . . . . . . . . . . . . . . . . . . Slashing 100 | . . . . . . . . . . . 100 . . . . . . Piercing 397 | . . . . . . . . . . . . . 63 . . . 334 Highest Corruption 3 | . 3 3 . . . . . 2 2 2 2 2 . . . . . Average Corruption 2 | . 2 3 . . . . . 2 2 2 2 2 . . . . . Corruption Purged . | . . . . . . . . . . . . . . . . . . Effects 44 | . 12 19 . . . . . 11 2 . . . . . . . . Message Errors 17 | . 5 5 . . . . . 6 1 . . . . . . . . Matter Fused 8 | . 2 6 . . . . . . . . . . . . . . . Heat Flow Errors 2 | . . 1 . . . . . 1 . . . . . . . . . Energy Discharges 4 | . . 4 . . . . . . . . . . . . . . . Data Loss (minor) 8 | . 3 1 . . . . . 3 1 . . . . . . . . Targeting Errors 4 | . 1 2 . . . . . 1 . . . . . . . . . Weapon Failures 1 | . 1 . . . . . . . . . . . . . . . . Overload Shots . | . . . . . . . . . . . . . . . . . . Overflow Damage 91 | . 7 . 6 . 70 . 8 . . . . . . . . . . Projectiles . | . . . . . . . . . . . . . . . . . . Explosions 84 | . . . 6 . 70 . 8 . . . . . . . . . . Melee 7 | . 7 . . . . . . . . . . . . . . . . Knockbacks 3 | . . . . . 2 . . 1 . . . . . . . . . Impact 3 | . . . . . 2 . . 1 . . . . . . . . . Kinetic . | . . . . . . . . . . . . . . . . . . Secondary . | . . . . . . . . . . . . . . . . . . Self-Inflicted Damage 221 | . . 6 36 . 140 . 39 . . . . . . . . . . Shots 7 | . . 1 2 . 3 . 1 . . . . . . . . . . Rammed 65 | . 2 3 3 1 44 3 3 6 . . . . . . . . . Targets Rammed 67 | . 2 3 3 1 45 3 3 7 . . . . . . . . . Kicked . | . . . . . . . . . . . . . . . . . . Crushed 2 | . . . . . 1 . . 1 . . . . . . . . . Highest Temperature 559 | 20 70 251 28 10 559 . 160 263 . . . 6 3 . . 24 72 Average Temperature 81 | 14 22 54 9 5 173 . 49 35 . . . 6 3 . . 10 20 Received Heat Transfer 2601 | . 159 96 384 24 . . 684 576 . 9 12 54 81 . . 9 513 Effects 21 | . . . . . 21 . . . . . . . . . . . . Shutdowns 2 | . . . . . 2 . . . . . . . . . . . . Energy Bleed 2 | . . . . . 2 . . . . . . . . . . . . Interference 7 | . . . . . 7 . . . . . . . . . . . . Matter Decay 5 | . . . . . 5 . . . . . . . . . . . . Short Circuit 2 | . . . . . 2 . . . . . . . . . . . . Damage (minor) 2 | . . . . . 2 . . . . . . . . . . . . Damage (major) 1 | . . . . . 1 . . . . . . . . . . . . Siege Activations . | . . . . . . . . . . . . . . . . . . Robots Corrupted . | . . . . . . . . . . . . . . . . . . Combat Hostiles . | . . . . . . . . . . . . . . . . . . Parts Fried . | . . . . . . . . . . . . . . . . . . Impact Corruptions 3 | . 1 . . . . . . 2 . . . . . . . . . Robots Melted . | . . . . . . . . . . . . . . . . . . Combat Hostiles . | . . . . . . . . . . . . . . . . . . Parts Melted 1 | . . . . . . . 1 . . . . . . . . . . Heat Transferred 62 | . 50 . . . 12 . . . . . . . . . . . . Parts Sabotaged . | . . . . . . . . . . . . . . . . . . Parts Stolen . | . . . . . . . . . . . . . . . . . . Parts Stripped . | . . . . . . . . . . . . . . . . . . Power Chain Reactions 1 | . . . . . 1 . . . . . . . . . . . . Missiles Intercepted . | . . . . . . . . . . . . . . . . . . Alert | -11 -10 -10 -9 -9 -9 -8 -8 -7 -7 -7 -7 -6 -6 -6 -6 -6 -6 ------- Run | Scr Mat Min Mat Min Exi Min Mat Fac Low Low Dat Pro Fac Low Low Zio Dee Peak Influence 714 | 10 190 158 324 101 . 120 584 714 . . . . 201 . . . . Average Influence 223 | 6 57 80 113 65 . 83 314 459 . . . . 106 . . . . Maximum Alert Level 3 | . . . 1 . . . 2 3 . . . . 1 . . . . Low Security (%) 59 | 100 100 100 82 100 . 100 37 1 . . . . 98 . . . . Level 1 15 | . . . 17 . . . 13 38 . . . . 1 . . . . Level 2 24 | . . . . . . . 49 56 . . . . . . . . . Level 3 . | . . . . . . . . 2 . . . . . . . . . Level 4 . | . . . . . . . . . . . . . . . . . . Level 5 . | . . . . . . . . . . . . . . . . . . High Security . | . . . . . . . . . . . . . . . . . . Max Security . | . . . . . . . . . . . . . . . . . . Squads Dispatched 15 | . 2 . 1 . . . 2 9 . . . . 1 . . . . Investigation 4 | . 1 . 1 . . . . 2 . . . . . . . . . Extermination 3 | . . . . . . . . 2 . . . . 1 . . . . Reinforcement 5 | . 1 . . . . . 2 2 . . . . . . . . . Assault . | . . . . . . . . . . . . . . . . . . Garrison 3 | . . . . . . . . 3 . . . . . . . . . Intercept . | . . . . . . . . . . . . . . . . . . Construction Impeded 1 | . . . . . . . 1 . . . . . . . . . . Haulers Reinforced 1 | . . . . . . . . 1 . . . . . . . . . Stealth | -11 -10 -10 -9 -9 -9 -8 -8 -7 -7 -7 -7 -6 -6 -6 -6 -6 -6 --------- Run | Scr Mat Min Mat Min Exi Min Mat Fac Low Low Dat Pro Fac Low Low Zio Dee Distress Signals 9 | . 2 . 4 . . . 1 2 . . . . . . . . . Communications Jammed . | . . . . . . . . . . . . . . . . . . Distress Signals . | . . . . . . . . . . . . . . . . . . Times Spotted 266 | . 27 10 35 3 7 5 52 43 10 3 4 8 19 2 2 29 7 Peak Tracking Total 9 | . 5 3 9 2 8 4 5 4 4 3 4 4 8 3 2 6 3 Tactical Retreats 19 | . 1 . 1 2 . . . 3 2 . . 1 7 1 . 1 . Traps | -11 -10 -10 -9 -9 -9 -8 -8 -7 -7 -7 -7 -6 -6 -6 -6 -6 -6 ------- Run | Scr Mat Min Mat Min Exi Min Mat Fac Low Low Dat Pro Fac Low Low Zio Dee Traps Triggered 5 | . 2 . 1 . . . . 1 . . . . 1 . . . . Indirectly . | . . . . . . . . . . . . . . . . . . Trap Hack Attempts . | . . . . . . . . . . . . . . . . . . Triggered . | . . . . . . . . . . . . . . . . . . Disarmed . | . . . . . . . . . . . . . . . . . . Reprogrammed . | . . . . . . . . . . . . . . . . . . Reused . | . . . . . . . . . . . . . . . . . . Traps Extracted . | . . . . . . . . . . . . . . . . . . Installed . | . . . . . . . . . . . . . . . . . . Triggered . | . . . . . . . . . . . . . . . . . . Machines | -11 -10 -10 -9 -9 -9 -8 -8 -7 -7 -7 -7 -6 -6 -6 -6 -6 -6 ---------- Run | Scr Mat Min Mat Min Exi Min Mat Fac Low Low Dat Pro Fac Low Low Zio Dee Machines Disabled 11 | . . 1 . . 5 . 2 . . . . . . . . 1 2 Max in Single Turn 1 | . . 1 . . 1 . 1 . . . . . . . . 1 1 Garrison Access 3 | . . . . . . . . 2 . . . . 1 . . . . Machines Sabotaged . | . . . . . . . . . . . . . . . . . . Garrisons Compromised . | . . . . . . . . . . . . . . . . . . Overloaded Fab Kills . | . . . . . . . . . . . . . . . . . . Fab Network Shutdowns . | . . . . . . . . . . . . . . . . . . Hacking | -11 -10 -10 -9 -9 -9 -8 -8 -7 -7 -7 -7 -6 -6 -6 -6 -6 -6 --------- Run | Scr Mat Min Mat Min Exi Min Mat Fac Low Low Dat Pro Fac Low Low Zio Dee Machines Accessed 56 | . 6 . 7 . 2 . 10 16 . . 4 . 9 . 1 1 . Terminals 24 | . 4 . 3 . . . 5 9 . . . . 3 . . . . Fabricators 4 | . . . . . . . . 2 . . . . 2 . . . . Repair Stations 8 | . 1 . 1 . . . 2 2 . . . . 2 . . . . Recycling Units 3 | . 1 . 1 . . . 1 . . . . . . . . . . Scanalyzers 6 | . . . 2 . . . 2 1 . . . . 1 . . . . Garrison Access 3 | . . . . . . . . 2 . . . . 1 . . . . Total Hacks 213 | . 21 . 25 . 2 . 39 50 . . 29 . 38 . 1 8 . Successful 162 | . 12 . 20 . 2 . 22 41 . . 29 . 27 . 1 8 . Failed 50 | . 8 . 5 . . . 17 9 . . . . 11 . . . . Catastrophic 2 | . 1 . . . . . 1 . . . . . . . . . . Database Lockouts 1 | . 1 . . . . . . . . . . . . . . . . Manual 69 | . 12 . 9 . 1 . 13 20 . . . . 13 . . 1 . Terminals 88 | . 15 . 6 . . . 23 29 . . . . 15 . . . . Fabricators 17 | . . . . . . . . 9 . . . . 8 . . . . Repair Stations 31 | . 2 . 9 . . . 6 6 . . . . 8 . . . . Recycling Units 11 | . 4 . 4 . . . 3 . . . . . . . . . . Scanalyzers 20 | . . . 6 . . . 7 4 . . . . 3 . . . . Garrison Access 6 | . . . . . . . . 2 . . . . 4 . . . . Terminal Hacks 72 | . 7 . 1 . 2 . 6 13 . . 29 . 5 . 1 8 . Record 12 | . . . . . 1 . . . . . 11 . . . . . . Part Schematic 19 | . . . . . . . . 1 . . 10 . . . . 8 . Robot Schematic 5 | . . . . . . . . . . . 5 . . . . . . Prototype ID Bank 5 | . 1 . . . . . 1 . . . 3 . . . . . . Open Door 1 | . . . . . . . . . . . . . . . 1 . . Branch Access Points 4 | . 1 . 1 . . . . 2 . . . . . . . . . Machine Index 1 | . . . . . . . . 1 . . . . . . . . . Terminal Index 2 | . . . . . . . . 1 . . . . 1 . . . . Scanalyzer Index 1 | . . . . . . . . 1 . . . . . . . . . Alert Level 1 | . . . . . . . 1 . . . . . . . . . . Unreport Threat 3 | . . . . . . . . 3 . . . . . . . . . Locate Traps 6 | . 2 . . . . . 2 2 . . . . . . . . . Recall Investigation 1 | . 1 . . . . . . . . . . . . . . . . Recall Extermination 1 | . . . . . . . . . . . . . 1 . . . . Hauler Manifests 5 | . 1 . . . . . 1 1 . . . . 2 . . . . Registered Components 2 | . 1 . . . . . 1 . . . . . . . . . . Zone Layout 2 | . . . . . . . . 1 . . . . 1 . . . . EX-Prototype ID Bank 1 | . . . . . 1 . . . . . . . . . . . . Fabricator Hacks 10 | . . . . . . . . 5 . . . . 5 . . . . Load Schematic 4 | . . . . . . . . 2 . . . . 2 . . . . Build 6 | . . . . . . . . 3 . . . . 3 . . . . Repair Station Hacks 30 | . 2 . 8 . . . 6 6 . . . . 8 . . . . Scan Component 15 | . 1 . 4 . . . 3 3 . . . . 4 . . . . Repair 15 | . 1 . 4 . . . 3 3 . . . . 4 . . . . Recycling Unit Hacks 2 | . 1 . . . . . 1 . . . . . . . . . . Retrieve Components 2 | . 1 . . . . . 1 . . . . . . . . . . Scanalyzer 18 | . . . 6 . . . 5 4 . . . . 3 . . . . Insert Component 10 | . . . 3 . . . 2 2 . . . . 3 . . . . Analyze 8 | . . . 3 . . . 3 2 . . . . . . . . . Garrison Access Hacks 2 | . . . . . . . . 1 . . . . 1 . . . . Seal Access 2 | . . . . . . . . 1 . . . . 1 . . . . Unauthorized Hacks 28 | . 2 . 5 . . . 4 12 . . . . 5 . . . . Terminals 20 | . 1 . 2 . . . 4 10 . . . . 3 . . . . Track 2 | . . . . . . . . 2 . . . . . . . . . Assimilate 1 | . . . . . . . . 1 . . . . . . . . . Botnet 13 | . 1 . 2 . . . 2 5 . . . . 3 . . . . Disrupt 2 | . . . . . . . 1 1 . . . . . . . . . Operators 2 | . . . . . . . 1 1 . . . . . . . . . Fabricators 3 | . . . . . . . . 1 . . . . 2 . . . . Siphon 3 | . . . . . . . . 1 . . . . 2 . . . . Repair Stations . | . . . . . . . . . . . . . . . . . . Recycling Units 4 | . 1 . 3 . . . . . . . . . . . . . . Reject 1 | . . . 1 . . . . . . . . . . . . . . Recyclers 2 | . 1 . 1 . . . . . . . . . . . . . . Mask 1 | . . . 1 . . . . . . . . . . . . . . Scanalyzers . | . . . . . . . . . . . . . . . . . . Garrison Access 1 | . . . . . . . . 1 . . . . . . . . . Jam 1 | . . . . . . . . 1 . . . . . . . . . Data Cores Recovered 1 | . 1 . . . . . . . . . . . . . . . . Used . | . . . . . . . . . . . . . . . . . . Hacking Detections 43 | . 6 . 7 . . . 10 13 . . . . 7 . . . . Full Trace Events 2 | . . . . . . . 1 1 . . . . . . . . . Feedback Events . | . . . . . . . . . . . . . . . . . . Feedback Blocked . | . . . . . . . . . . . . . . . . . . Robot Schematics Acquired 5 | . . . . . . . . . . . 5 . . . . . . Robots Built . | . . . . . . . . . . . . . . . . . . Matter . | . . . . . . . . . . . . . . . . . . Time . | . . . . . . . . . . . . . . . . . . Total Robot Build Rating . | . . . . . . . . . . . . . . . . . . Part Schematics Acquired 25 | . . . 2 . . . 2 3 . . 10 . . . . 8 . Parts Built 6 | . . . . . . . . 3 . . . . 3 . . . . Matter 1094 | . . . . . . . . 602 . . . . 492 . . . . Time 348 | . . . . . . . . 174 . . . . 174 . . . . Total Part Build Rating 18 | . . . . . . . . 9 . . . . 9 . . . . Parts Repaired 15 | . 1 . 4 . . . 3 3 . . . . 4 . . . . Time 760 | . 26 . 128 . . . 228 158 . . . . 220 . . . . Parts Recycled . | . . . . . . . . . . . . . . . . . . Recycled Matter . | . . . . . . . . . . . . . . . . . . Retrieved Matter . | . . . . . . . . . . . . . . . . . . Retrieved Components 13 | . 3 . . . . . 10 . . . . . . . . . . Parts Scanalyzed 6 | . . . 2 . . . 2 2 . . . . . . . . . Part Schematics Acquired 6 | . . . 2 . . . 2 2 . . . . . . . . . Parts Damaged 2 | . . . . . . . 1 1 . . . . . . . . . Bothacking | -11 -10 -10 -9 -9 -9 -8 -8 -7 -7 -7 -7 -6 -6 -6 -6 -6 -6 ------------ Run | Scr Mat Min Mat Min Exi Min Mat Fac Low Low Dat Pro Fac Low Low Zio Dee Used RIF Installer . | . . . . . . . . . . . . . . . . . . Robots Hacked . | . . . . . . . . . . . . . . . . . . Non-combat . | . . . . . . . . . . . . . . . . . . Combat . | . . . . . . . . . . . . . . . . . . Robot Hacks Applied . | . . . . . . . . . . . . . . . . . . Relay Couplers Released . | . . . . . . . . . . . . . . . . . . Robots Rewired . | . . . . . . . . . . . . . . . . . . Allies Hacked . | . . . . . . . . . . . . . . . . . . Hacks Repelled . | . . . . . . . . . . . . . . . . . . Allies | -11 -10 -10 -9 -9 -9 -8 -8 -7 -7 -7 -7 -6 -6 -6 -6 -6 -6 -------- Run | Scr Mat Min Mat Min Exi Min Mat Fac Low Low Dat Pro Fac Low Low Zio Dee Total Allies 5 | . . . . 3 . . . . . . . . . . . 2 . Largest Group 3 | . . . . 3 . . . . . . . . . . . 2 . Highest-Rated Group 188 | . . . . 40 . . . . . . . . . . . 188 . Highest-Rated Ally 94 | . . . . 16 . . . . . . . . . . . 94 . Total Orders . | . . . . . . . . . . . . . . . . . . Ally Attacks 65 | . . . . 7 . . . . . . . . . . . 58 . Total Damage 1758 | . . . . 68 . . . . . . . . . . . 1690 . Kills 8 | . . . . . . . . . . . . . . . . 8 . Allies Corrupted . | . . . . . . . . . . . . . . . . . . Allies Melted . | . . . . . . . . . . . . . . . . . . Intel | -11 -10 -10 -9 -9 -9 -8 -8 -7 -7 -7 -7 -6 -6 -6 -6 -6 -6 ------- Run | Scr Mat Min Mat Min Exi Min Mat Fac Low Low Dat Pro Fac Low Low Zio Dee Robot Analysis Total . | . . . . . . . . . . . . . . . . . . Derelict Logs Recovered 8 | . . 2 . 1 . . . . 1 . . 1 . 1 2 . . Drone Launches . | . . . . . . . . . . . . . . . . . . Drone Recoveries . | . . . . . . . . . . . . . . . . . . Exploration | -11 -10 -10 -9 -9 -9 -8 -8 -7 -7 -7 -7 -6 -6 -6 -6 -6 -6 ------------- Run | Scr Mat Min Mat Min Exi Min Mat Fac Low Low Dat Pro Fac Low Low Zio Dee Turns Passed 14590 | 55 1434 1003 2002 590 1820 248 2205 2479 174 24 29 81 383 56 149 1622 236 Spaces Moved 8549 | 23 693 521 737 267 634 94 688 1026 462 20 92 266 890 183 370 1337 246 Core 37 | . . . . . . . . . . . . . . . . 37 . Treads 4458 | . 606 521 737 267 634 94 688 911 . . . . . . . . . Legs 110 | 23 87 . . . . . . . . . . . . . . . . Wheels . | . . . . . . . . . . . . . . . . . . Hover . | . . . . . . . . . . . . . . . . . . Flight 3944 | . . . . . . . . 115 462 20 92 266 890 183 370 1300 246 Fastest Speed 29 | 120 120 180 200 200 180 180 180 29 29 29 29 29 29 29 29 29 29 Average Speed 122 | 120 160 180 200 200 201 193 216 178 29 29 29 29 30 29 29 64 29 Slowest Speed 750 | 120 180 180 200 200 240 200 225 225 29 29 29 29 32 29 29 750 29 Overloaded Moves . | . . . . . . . . . . . . . . . . . . Propulsion Burnouts . | . . . . . . . . . . . . . . . . . . Robots Hopped 28 | . . . . . . . . 2 1 . . 1 20 2 . . 2 Cave-ins Triggered . | . . . . . . . . . . . . . . . . . . Exploration Rate (%) 52 | 3 87 99 42 63 68 27 61 36 65 11 82 49 25 42 66 86 26 Regions Visited 17 Branch Regions 12 Pre-discovered Areas 8 | . . 2 . 1 1 . . . . . 1 1 . . . 2 . Known Exits Taken 4 | . 1 . 1 . . . . 1 . . . . 1 . . . . Unknown Exits Taken 13 | 1 . 1 . 1 1 1 1 . 1 1 1 1 . 1 1 1 . Scrap Searched 13 | . . 1 . . . . . . . . . 4 . 2 3 3 . Spaces Dug 39 | . . . . . . . . 12 8 . . . 8 . 8 3 . Terrain Destroyed 171 | . . 35 14 . 48 . 29 12 8 . . . 8 . 8 4 5 Melee 39 | . . . . . . . . 12 8 . . . 8 . 8 3 . Projectile 6 | . . . . . . . . . . . . . . . . 1 5 AOE 126 | . . 35 14 . 48 . 29 . . . . . . . . . . Actions | -11 -10 -10 -9 -9 -9 -8 -8 -7 -7 -7 -7 -6 -6 -6 -6 -6 -6 --------- Run | Scr Mat Min Mat Min Exi Min Mat Fac Low Low Dat Pro Fac Low Low Zio Dee Total 11591 | 37 914 556 1117 307 1001 138 1217 1531 488 37 92 267 966 183 394 1979 367 Wait 1811 | 6 81 4 236 23 111 16 297 285 18 18 . . 57 1 17 547 94 Move 8480 | 22 692 520 736 266 633 93 687 1022 459 19 91 263 851 178 369 1336 243 Hop 24 | . . . . . . . . 1 1 . . 1 18 2 . . 1 Pick Up 161 | . 34 . 19 4 33 3 36 17 1 . . 1 12 1 . . . Fast Attach 37 | 1 1 1 7 . 5 . 12 4 . . . 1 3 . . 2 . Attach 68 | . 6 . 5 . 13 3 5 23 . . . 1 9 1 . . 2 Detach 7 | . . . 2 . 3 . 2 . . . . . . . . . . Swap 57 | 1 5 6 9 . 10 3 6 13 . . . . . . . 4 . Drop 163 | . 23 3 15 4 40 5 23 40 1 . . . 7 . . 2 . Fire 653 | 7 70 19 85 9 108 12 146 105 . . . . . . . 77 15 Melee 61 | . . . . . . . . 12 8 . 1 . 9 . 8 11 12 Ram . | . . . . . . . . . . . . . . . . . . Kick . | . . . . . . . . . . . . . . . . . . Crush 67 | . 2 3 3 1 45 3 3 7 . . . . . . . . . Escape Stasis 2 | . . . . . . . . 2 . . . . . . . . . Rewire . | . . . . . . . . . . . . . . . . . . Trap . | . . . . . . . . . . . . . . . . . . Miscellaneous . | . . . . . . . . . . . . . . . . . . Route ------- -11/Scrapyard -10/Materials (discovered 4 exits: *Mat x2 / *Min x2) -10/Mines (discovered 2 exits: *Mat x2) -9/Materials (discovered 4 exits: *Mat / *Min / Sto x2) -9/Mines (discovered 3 exits: *Mat x2 / *Exi) -9/Exiles -8/Mines -8/Materials -7/Factory (discovered 4 exits: *Fac x2 / *Low x2) -7/Lower Caves -7/Lower Caves -7/Data Miner -6/Proximity Caves -6/Factory -6/Lower Caves -6/Lower Caves -6/Zion (discovered 2 exits: [*Dee] / [*Pro]) -6/Deep Caves History --------- Turn | Location | Event 15 | -11/Scrapyard | Discovered new exit (range 3) 56 | -11/Scrapyard | Entered Materials 263 | -10/Materials | Identified exit to Mines 279 | -10/Materials | Discovered new exit (range 6) 317 | -10/Materials | Build established: Mutant 373 | -10/Materials | Central database locked down 923 | -10/Materials | Discovered new exit (range 8) 1349 | -10/Materials | Repaired Lgt. Assault Rifle 1370 | -10/Materials | Build established: Hauler-Mutant 1490 | -10/Materials | Entered Mines 1525 | -10/Mines | Met a Derelict bent on vengeance 1568 | -10/Mines | Learned location of Recycling (-9) 2042 | -10/Mines | Discovered new exit (range 15) 2248 | -10/Mines | Learned location of Storage (-9) 2405 | -10/Mines | Core integrity fell below 50% 2473 | -10/Mines | Discovered new exit (range 3) 2493 | -10/Mines | Entered Materials 2493 | -9/Materials | Evolved 2 slots: Utility x2 3182 | -9/Materials | Discovered new exit (range 3) 3503 | -9/Materials | Repaired Hrd. Light Armor Plating 3819 | -9/Materials | Identified exit to Mines 3819 | -9/Materials | Identified exit to Storage 4164 | -9/Materials | Destroyed 7 combat bots 4279 | -9/Materials | Repaired Hvy. Assault Rifle 4312 | -9/Materials | Repaired Hvy. Assault Rifle 4346 | -9/Materials | Repaired Hrd. Light Armor Plating 4495 | -9/Materials | Entered Mines 4505 | -9/Mines | Assisted by bots powering up and referring to "LRC-V3" 4529 | -9/Mines | Discovered new exit (range 15) 4778 | -9/Mines | Received a Rocket Launcher from a helpful Derelict 4999 | -9/Mines | Discovered new exit (range 8) 5077 | -9/Mines | Deemed a non-threat by the Exiles lab entrance 5077 | -9/Mines | Discovered new exit (range 5) 5085 | -9/Mines | Entered Exiles 5133 | -9/Exiles | Met 8R-AWN 5165 | -9/Exiles | Met EX-HEX 5270 | -9/Exiles | Met EX-DEC 5302 | -9/Exiles | Learned location of Zion (-6) 5490 | -9/Exiles | Met EX-BIN 5518 | -9/Exiles | Aligned with FarCom system 5520 | -9/Exiles | Given EX-Vault access code 5566 | -9/Exiles | Opened EX-Vault 5584 | -9/Exiles | Found Superbattery 5588 | -9/Exiles | Found Chronowheel 5599 | -9/Exiles | Found AWS/Thermal 5644 | -9/Exiles | Warned to stay clear of 0b10 Research branches 5786 | -9/Exiles | Discovered new exit (range 14) 6188 | -9/Exiles | Attacked by the Exiles 6221 | -9/Exiles | Core integrity fell below 50% 6289 | -9/Exiles | Lost 7 parts (2p2n2u1w) 6364 | -9/Exiles | Lost 4 parts (1n3w) 6751 | -9/Exiles | Destroyed 8R-AWN 6755 | -9/Exiles | Found Prototype Ballistic Gun 6761 | -9/Exiles | Found Prototype Ballistic Gun 6764 | -9/Exiles | Found Prototype Processor 6767 | -9/Exiles | Found Prototype Device 6767 | -9/Exiles | Identified AS-neutralizer No. 17b 6787 | -9/Exiles | Found Prototype Protection 6787 | -9/Exiles | Identified 8R-AWN's Armor/EX 6905 | -9/Exiles | Stole three prototypes: Superbattery, Chronowheel, AWS/Thermal 6905 | -9/Exiles | Entered Mines 7145 | -8/Mines | Discovered new exit (range 5) 7153 | -8/Mines | Entered Materials 7153 | -8/Materials | Evolved 2 slots: Utility x2 8298 | -8/Materials | Discovered new exit (range 16) 8459 | -8/Materials | Repaired Adv. Weapon Cycler 8540 | -8/Materials | Repaired Gravity Neutralizing Apparatus 9065 | -8/Materials | Repaired Gravity Neutralizing Apparatus 9358 | -8/Materials | Entered Factory 9358 | -7/Factory | Evolved 2 slots: Propulsion x1, Utility x1 9530 | -7/Factory | Garrison activated, responded to threat 9725 | -7/Factory | Repaired Broken Adv. Weapon Cycler 10382 | -7/Factory | Discovered new exit (range 10) 10458 | -7/Factory | Identified exit to Lower Caves 11025 | -7/Factory | Discovered new exit (range 15) 11208 | -7/Factory | Fabricated Imp. VTOL Module (x1) 11267 | -7/Factory | Fabricated Imp. VTOL Module (x1) 11535 | -7/Factory | Repaired Broken Imp. VTOL Module 11561 | -7/Factory | Repaired Lgt. Angular Momentum Engine 11829 | -7/Factory | Fabricated Imp. VTOL Module? 11837 | -7/Factory | Entered Lower Caves 11839 | -7/Lower Caves | Spotted B-75 Beast 11878 | -7/Lower Caves | Learned 4 Factory zone layouts 12008 | -7/Lower Caves | Discovered new exit (range 9) 12011 | -7/Lower Caves | Entered another Lower Caves area 12011 | -7/Lower Caves | Discovered new exit (range 12) 12035 | -7/Lower Caves | Entered Data Miner 12035 | -7/Data Miner | Discovered new exit (range 6) 12039 | -7/Data Miner | Met Data Miner 12044 | -7/Data Miner | Build established: Hacker-Sprinter 12046 | -7/Data Miner | Learned location of Section 7 (-2) 12046 | -7/Data Miner | Acquired the access code to Warlord's prototype stash 12050 | -7/Data Miner | Received God Mode back door access code from Data Miner 12064 | -7/Data Miner | Entered Proximity Caves 12078 | -6/Proximity Caves | Learned location of Extension (-5) 12141 | -6/Proximity Caves | Spotted DP-RFO(f) 12144 | -6/Proximity Caves | Discovered new exit (range 5) 12145 | -6/Proximity Caves | Entered Factory 12145 | -6/Factory | Evolved 2 slots: Utility x2 12280 | -6/Factory | Discovered new exit (range 11) 12291 | -6/Factory | Repaired Imp. VTOL Module? 12309 | -6/Factory | Fabricated Imp. VTOL Module? 12347 | -6/Factory | Fabricated Imp. VTOL Module? 12372 | -6/Factory | Repaired Gravity Neutralizing Apparatus? 12429 | -6/Factory | Identified 8R-AWN's Boregun (x2) 12429 | -6/Factory | Identified Exp. Targeting Computer 12459 | -6/Factory | Repaired Lgt. Angular Momentum Engine 12464 | -6/Factory | Identified exit to Lower Caves 12471 | -6/Factory | Fabricated Imp. VTOL Module (x1) 12521 | -6/Factory | Repaired Imp. VTOL Module 12528 | -6/Factory | Entered Lower Caves 12553 | -6/Lower Caves | Learned Factory garrison access intel 12580 | -6/Lower Caves | Discovered new exit (range 13) 12584 | -6/Lower Caves | Entered another Lower Caves area 12612 | -6/Lower Caves | Spotted B-75 Beast 12729 | -6/Lower Caves | Discovered new exit (range 13) 12733 | -6/Lower Caves | Entered Zion 12748 | -6/Zion | Discovered new exit (range 13) 12774 | -6/Zion | Received a hallucinogenic algorithm 12893 | -6/Zion | Given A8's code to call for help 12897 | -6/Zion | Learned location of Armory (-3) 12918 | -6/Zion | Found Prototype Device 12918 | -6/Zion | Identified Mobile Refinery Mk. CCLXVII 13224 | -6/Zion | Build established: Hacker-Mutant 13861 | -6/Zion | Enhanced Grunt warped into view, answering call for help 13864 | -6/Zion | Enhanced Grunt warped into view, answering call for help 13961 | -6/Zion | Discovered new exit (range 3) 14046 | -6/Zion | Attacked by Zionites 14267 | -6/Zion | CL-ANK came to Zion's defense 14323 | -6/Zion | Destroyed CL-ANK 14326 | -6/Zion | Spotted 4V-KDI(B) 14328 | -6/Zion | Spotted 4Z-5NY(B) 14355 | -6/Zion | Entered Deep Caves 14520 | -6/Deep Caves | Attacked by Z-Imprinter 14571 | -6/Deep Caves | Core integrity fell below 50% 14585 | -6/Deep Caves | Core integrity fell below 20% 14591 | -6/Deep Caves | Destroyed by Z-Imprinter with Zionite Laser-M Last Messages --------------- 14529_ HV Slug penetrates Z-Imprinter. 14529_ HV Slug penetrates Wall. 14530_ 8R-AWN's Boregun destroyed. 14531_ Enh. Optical Array destroyed. 14531_ HV Slug penetrates Wall. 14533_ Gravity Neutralizing Apparatus destroyed. 14533_ 8R-AWN's Boregun destroyed. 14539_ Imp. Hacking Suite destroyed. 14546_ Acquired 7 matter. 14556_ X0-VG9(z) suffers critical hit. 14560_ Gravity Neutralizing Apparatus destroyed. 14565_ X0-VG9(z) destroyed. 14568_ Imp. VTOL Module destroyed. 14571_ Lgt. Angular Momentum Engine destroyed. 14571_ Adv. Weapon Cycler destroyed. 14578_ Adv. Weight Redist. System destroyed. 14581_ Imp. VTOL Module destroyed. 14587_ Exp. Targeting Computer destroyed. 14589_ Destroyed Prototype Protection. 14590_ Hvy. Pick destroyed. Map ----- +----------------------------------------------------+ | | | | | | | | | | | | | | | | | | | | | | | | | ???????????????????????????????? | | ???????????????????????????????? | | ???????????????????????????????? | | ???????????????????????????????? | | ??###??????????????????????????? | | ?## #?????????????????????????? | | ?# ?????????????#######?????? | | ??# ##???????????# #?????? | | ???# ##??????????# " ###???? | | ????# ##????????## """ ##??? | | ????# ########## " #??? | | ##??# #??? | | "##### ## ##??? | | ####### ###;@!#???? | | ##????####?#I%;#???? | | #???#######!!##???? | | ###"#""## ##### z ;#???? | | #?######## ## ##???? | | ?????????# ########????? | | ?????????# #???????????? | | ?????????# #???????????? | | ?????????# ##???????????? | | ?????????# #????????????? | | ?????????## ######???????? | | ??????????# ## #???????? | | ??????????# ########## #???????? | | ??????????# ####?????# ######??? | | ??????????# ####### #??? | | ??????????# ## #### #??? | | ??????????# " # ### #??? | | ??????????### """ ##?? | | ????????????# " #?? | | ????????????# ## #?? | | ????????????# # ### #?? | | ????????????# # ### ##?? | | ????????????# ##??? | | ????????????# ### ##???? | | ????????????# # ##?## ##????? | +----------------------------------------------------+ Best States ------------- Heat Dissipation 37 Energy Generation 18 Energy Capacity 2150 Matter Stores 300 Matter Capacity 300 Sight Range 22 Terrain Scan Density 10 Additional Mass Support 24 Armor Coverage 1000 Resistance: TH 10 Resistance: EX 90 Propulsion Shielding 66 Weapon Cycling 25 Evasion (%) 64 Targeting Accuracy 12 Recoil Reduction 3 Offensive Hacking 32 Defensive Hacking 22 Item Schematics ----------------- Hacking Suite | -9/Materials | Scanalyzed Med. Storage Unit | -9/Materials | Scanalyzed Adv. Weapon Cycler | -8/Materials | Scanalyzed Gravity Neutralizing Apparatus | -8/Materials | Scanalyzed Imp. VTOL Module | -7/Factory | Scanalyzed Lgt. Angular Momentum Engine | -7/Factory | Scanalyzed Imp. Utility Shielding | -7/Factory | Hacked Combat Drone Bay | -7/Data Miner | Free Lgt. Regenerative Plating | -7/Data Miner | Free Exp. Flexi-carbon Leg | -7/Data Miner | Free Cmb. Gravmag System | -7/Data Miner | Free Triangulator | -7/Data Miner | Free Exp. Sensor Array | -7/Data Miner | Free Exp. Terrain Scanner | -7/Data Miner | Free Tactical Coordination Suite | -7/Data Miner | Free Exp. Transmission Jammer | -7/Data Miner | Free Plasma Sword | -7/Data Miner | Free Beamcaster | -6/Zion | Free Riot Gun | -6/Zion | Free Battle Rifle | -6/Zion | Free Battle Cannon | -6/Zion | Free Slug Cannon | -6/Zion | Free Flamer | -6/Zion | Free Enh. Flamer | -6/Zion | Free Phasing Sabre | -6/Zion | Free Robot Schematics ------------------ S-27 Virus | -7/Data Miner | Free G-50 Soldier | -7/Data Miner | Free L-41 Fighter | -7/Data Miner | Free X-72 Disruptor | -7/Data Miner | Free I-36 Angel | -7/Data Miner | Free Fabricated ------------ Imp. VTOL Module | x1 | -7/Factory Imp. VTOL Module | x1 | -7/Factory Imp. VTOL Module | x1 | -7/Factory Imp. VTOL Module | x1 | -6/Factory Imp. VTOL Module | x1 | -6/Factory Imp. VTOL Module | x1 | -6/Factory Alien Tech Used ----------------- None Achievements -------------- None Challenges ------------ None Game ------ Seed LinkedCorruptionSabre Manual? 0 Play Time 02:25:25 Cumulative 697.1 hours Start 2020.05.22 @ 14:44:24 End 2020.05.22 @ 17:47:36 Sessions 1 Manual Loads 0 Difficulty Rogue Special Mode None Game No. 441 Rogue 441 Adventurer 0 Explorer 0 Win Type - Total 106 Types 72/6/8/10/5/1/4 Lore% 97 Gallery% 95 Achievement% 80 Wizard Run 0 Options --------- ASCII 0 Keyboard 0 Movement Numpad Keybinds 0 Fullscreen 2 Font 18/SmallcapsGlow Map View 76x50 Tactical HUD 1 Map Filters NONE Filters NONE Steam 1 RUN: a54fe445-1b28-487c-bf53-c347866cd206